[Event "CZE-ch Women 2019"]
[Site "Prague"]
[Date "2019.06.15"]
[Round "1.1"]
[White "Laurincova, Kristyna"]
[Black "Novosadova, Kristyna"]
[Result "1/2-1/2"]
[ECO "B88"]
[WhiteElo "1984"]
[BlackElo "2209"]
[Annotator "NA"]
[PlyCount "61"]
[EventDate "2019.06.15"]
[EventType "tourn"]
[EventCountry "CZE"]
[SourceTitle "playchess.com"]
[Source "ChessBase"]
[SourceQuality "1"]
[TimeControl "40/5400+30:1800+30"]

1. e4 {[%emt 0:00:00]} c5 {[%emt 0:00:00]} 2. Nf3 {[%emt 0:00:00]} Nc6 {[%emt 0:00:00]} 3. d4 {[%emt 0:00:00]} cxd4 {[%emt 0:00:07]} 4. Nxd4 {[%emt 0:00:00]} d6 {[%emt 0:00:16]} 5. Nc3 {[%emt 0:01:43]} Nf6 {[%emt 0:00:18]} 6. Bc4 {[%emt 0:03:47]} e6 {[%emt 0:02:44]} 7. O-O {[%emt 0:07:16]} Be7 {[%emt 0:01:04]} 8. Bb3 {[%emt 0:10:19]} O-O {[%emt 0:01:31]} 9. Re1 {[%emt 0:08:01]} Nd7 {[%emt 0:09:41]} 10. Be3 {[%emt 0:11:10]} Nc5 {[%emt 0:19:06]} 11. Nxc6 {[%emt 0:03:28]} bxc6 {[%emt 0:00:05]} 12. Bxc5 {[%emt 0:00:06]} dxc5 {[%emt 0:00:04]} 13. e5 {[%emt 0:08:09]} Ba6 {[%emt 0:03:37]} 14. Qg4 {[%emt 0:02:50]} Rb8 {[%emt 0:02:14]} 15. Rad1 {[%emt 0:05:04]} Qc7 {[%emt 0:00:23]} 16. Ne4 {[%emt 0:31:23]} Qxe5 {[%emt 0:06:14]} 17. Rd7 {[%emt 0:04:17]} c4 {[%emt 0:06:15]} 18. Rxe7 {[%emt 0:00:43]} cxb3 {[%emt 0:00:15]} 19. axb3 {[%emt 0:00:39]} Rb7 {[%emt 0:08:38]} 20. Rxb7 {[%emt 0:00:02]} Bxb7 {[%emt 0:00:01]} 21. c3 {[%emt 0:00:50]} f5 {[%emt 0:02:56]} 22. Qg3 {[%emt 0:00:01]} Qxg3 {[%emt 0:01:01]} 23. Nxg3 {[%emt 0:00:02]} Kf7 {[%emt 0:01:03]} 24. f3 {[%emt 0:01:26]} Rd8 {[%emt 0:01:11]} 25. Kf2 {[%emt 0:00:01]} Rd5 {[%emt 0:01:53]} 26. Ke3 {[%emt 0:01:10]} g5 {[%emt 0:02:02]} 27. Nf1 {[%emt 0:00:32]} Ba6 {[%emt 0:01:24]} 28. c4 {[%emt 0:00:01]} Rd7 {[%emt 0:01:44]} 29. Ra1 {[%emt 0:00:50]} Bc8 {[%emt 0:00:02]} 30. Nd2 {[%emt 0:00:38]} Kf6 {[%emt 0:01:09]} 31. Ra5 {[%emt 0:00:02]} 1/2-1/2

[Event "CZE-ch Women 2019"]
[Site "Prague"]
[Date "2019.06.15"]
[Round "1.2"]
[White "Kulovana, Eva"]
[Black "Kanakova, Natalie"]
[Result "0-1"]
[ECO "B27"]
[WhiteElo "2208"]
[BlackElo "2201"]
[Annotator "NA"]
[PlyCount "46"]
[EventDate "2019.06.15"]
[EventType "tourn"]
[EventCountry "CZE"]
[SourceTitle "playchess.com"]
[Source "ChessBase"]
[SourceQuality "1"]
[TimeControl "40/5400+30:1800+30"]

1. e4 {[%emt 0:00:00]} c5 {[%emt 0:00:00]} 2. Nf3 {[%emt 0:00:00]} g6 {[%emt 0:00:00]} 3. d4 {[%emt 0:00:38]} cxd4 {[%emt 0:00:03]} 4. Qxd4 {[%emt 0:00:21]} Nf6 {[%emt 0:00:27]} 5. e5 {[%emt 0:01:17]} Nc6 {[%emt 0:00:07]} 6. Qa4 {[%emt 0:01:38]} Nd5 {[%emt 0:00:12]} 7. Qe4 {[%emt 0:00:23]} Nb6 {[%emt 0:09:48]} 8. Nc3 {[%emt 0:06:34]} d5 {[%emt 0:14:47]} 9. exd6 {[%emt 0:00:58]} Bf5 {[%emt 0:01:06]} 10. Qh4 {[%emt 0:15:15]} Qxd6 {[%emt 0:10:14]} 11. Bf4 {[%emt 0:03:37]} Qb4 {[%emt 0:08:02]} 12. O-O-O {[%emt 0:06:26]} Na4 {[%emt 0:07:41]} 13. Nxa4 {[%emt 0:06:29]} Qxa4 {[%emt 0:00:21]} 14. Bd3 {[%emt 0:04:56]} Qxa2 {[%emt 0:10:45]} 15. Bxf5 {[%emt 0:12:13]} gxf5 {[%emt 0:00:10]} 16. c3 {[%emt 0:01:46]} Rc8 {[%emt 0:04:40]} 17. Be5 {[%emt 0:11:23]} Rg8 {[%emt 0:00:49]} 18. h3 {[%emt 0:13:05]} Rg6 {[%emt 0:02:38]} 19. Rhe1 {[%emt 0:03:41]} Bh6+ {[%emt 0:01:13]} 20. Nd2 {[%emt 0:00:34]} Bg5 {[%emt 0:01:33]} 21. Qxh7 {[%emt 0:02:22]} Qa1+ {[%emt 0:00:08]} 22. Kc2 {[%emt 0:00:14]} Nb4+ {[%emt 0:00:04]} 23. Kb3 {[%emt 0:00:28]} Qa2+ {[%emt 0:00:05]} 0-1

[Event "CZE-ch Women 2019"]
[Site "Prague"]
[Date "2019.06.15"]
[Round "1.3"]
[White "Olsarova, Karolina"]
[Black "Petrova, Kristyna"]
[Result "1-0"]
[ECO "B40"]
[WhiteElo "2260"]
[BlackElo "2259"]
[Annotator "NA"]
[PlyCount "65"]
[EventDate "2019.06.15"]
[EventType "tourn"]
[EventCountry "CZE"]
[SourceTitle "playchess.com"]
[Source "ChessBase"]
[SourceQuality "1"]
[TimeControl "40/5400+30:1800+30"]

1. e4 {[%emt 0:00:00]} c5 {[%emt 0:00:00]} 2. Nf3 {[%emt 0:00:00]} e6 {[%emt 0:00:00]} 3. b3 {[%emt 0:00:00]} a6 {[%emt 0:00:00]} 4. Bb2 {[%emt 0:00:03]} Nc6 {[%emt 0:00:16]} 5. c4 {[%emt 0:04:04]} Qc7 {[%emt 0:03:53]} 6. g3 {[%emt 0:06:38]} Nf6 {[%emt 0:17:57]} 7. e5 {[%emt 0:04:19]} Ng4 {[%emt 0:00:12]} 8. Qe2 {[%emt 0:00:17]} Nh6 {[%emt 0:00:12]} 9. Na3 {[%emt 0:06:29]} Nf5 {[%emt 0:02:13]} 10. Nc2 {[%emt 0:00:16]} Be7 {[%emt 0:00:45]} 11. Bg2 {[%emt 0:02:08]} O-O {[%emt 0:03:27]} 12. O-O {[%emt 0:00:39]} b5 {[%emt 0:04:01]} 13. d4 {[%emt 0:10:57]} bxc4 {[%emt 0:22:32]} 14. Qxc4 {[%emt 0:02:08]} a5 {[%emt 0:01:44]} 15. Rfc1 {[%emt 0:19:18]} Ba6 {[%emt 0:00:34]} 16. Qc3 {[%emt 0:00:56]} Qa7 {[%emt 0:02:35]} 17. Qd2 {[%emt 0:04:20]} Rab8 {[%emt 0:09:54]} 18. d5 {[%emt 0:11:44]} exd5 {[%emt 0:12:25]} 19. Qxd5 {[%emt 0:00:57]} c4 {[%emt 0:00:11]} 20. Bh3 {[%emt 0:06:13]} Nh6 {[%emt 0:01:50]} 21. Bxd7 {[%emt 0:03:21]} Rbd8 {[%emt 0:07:20]} 22. e6 {[%emt 0:03:40]} Nb8 {[%emt 0:00:24]} 23. Ne5 {[%emt 0:03:24]} Nxd7 {[%emt 0:04:37]} 24. exd7 {[%emt 0:02:31]} Bb7 {[%emt 0:03:34]} 25. Qxc4 {[%emt 0:01:14]} Bf6 {[%emt 0:01:09]} 26. Qc7 {[%emt 0:04:05]} Bxe5 {[%emt 0:00:33]} 27. Qxe5 {[%emt 0:00:38]} f6 {[%emt 0:00:21]} 28. Qe6+ {[%emt 0:00:13]} Kh8 {[%emt 0:00:30]} 29. Ba3 {[%emt 0:01:59]} Rg8 {[%emt 0:00:22]} 30. Be7 {[%emt 0:00:21]} Qa6 {[%emt 0:00:54]} 31. Qxa6 {[%emt 0:00:41]} Bxa6 {[%emt 0:00:03]} 32. Bxd8 {[%emt 0:00:15]} Rxd8 {[%emt 0:00:02]} 33. Rd1 {[%emt 0:00:42]} 1-0

[Event "CZE-ch Women 2019"]
[Site "Prague"]
[Date "2019.06.15"]
[Round "1.4"]
[White "Sikorova, Olga"]
[Black "Miturova, Magdalena"]
[Result "1-0"]
[ECO "A20"]
[WhiteElo "2248"]
[BlackElo "2220"]
[Annotator "NA"]
[PlyCount "81"]
[EventDate "2019.06.15"]
[EventType "tourn"]
[EventCountry "CZE"]
[SourceTitle "playchess.com"]
[Source "ChessBase"]
[SourceQuality "1"]
[TimeControl "40/5400+30:1800+30"]

1. c4 {[%emt 0:00:00]} e5 {[%emt 0:00:00]} 2. g3 {[%emt 0:00:00]} Nf6 {[%emt 0:00:06]} 3. Bg2 {[%emt 0:00:07]} h6 {[%emt 0:04:18]} 4. Nc3 {[%emt 0:00:56]} Bb4 {[%emt 0:00:11]} 5. Nd5 {[%emt 0:02:22]} Nxd5 {[%emt 0:03:41]} 6. cxd5 {[%emt 0:00:13]} O-O {[%emt 0:04:02]} 7. e3 {[%emt 0:01:46]} c6 {[%emt 0:02:15]} 8. Ne2 {[%emt 0:08:34]} cxd5 {[%emt 0:02:48]} 9. Qb3 {[%emt 0:09:23]} Nc6 {[%emt 0:01:43]} 10. a3 {[%emt 0:01:10]} Ba5 {[%emt 0:03:41]} 11. Bxd5 {[%emt 0:16:20]} Ne7 {[%emt 0:03:51]} 12. Bg2 {[%emt 0:03:42]} d5 {[%emt 0:03:59]} 13. O-O {[%emt 0:00:25]} Bb6 {[%emt 0:19:20]} 14. d4 {[%emt 0:01:49]} e4 {[%emt 0:01:34]} 15. Bd2 {[%emt 0:02:02]} Bg4 {[%emt 0:02:15]} 16. Nc3 {[%emt 0:04:54]} Qd7 {[%emt 0:03:59]} 17. Rfc1 {[%emt 0:06:44]} Bd8 {[%emt 0:19:49]} 18. Na4 {[%emt 0:05:51]} Ng6 {[%emt 0:03:53]} 19. Nc5 {[%emt 0:07:16]} Qf5 {[%emt 0:00:20]} 20. Qxb7 {[%emt 0:01:17]} Be7 {[%emt 0:05:55]} 21. Qa6 {[%emt 0:01:38]} h5 {[%emt 0:01:22]} 22. Qf1 {[%emt 0:03:24]} Rab8 {[%emt 0:00:20]} 23. b4 {[%emt 0:00:54]} Nh4 {[%emt 0:07:01]} 24. gxh4 {[%emt 0:04:02]} Rb6 {[%emt 0:00:42]} 25. Nd3 {[%emt 0:07:15]} Bd6 {[%emt 0:02:37]} 26. Ne1 {[%emt 0:04:23]} Qf6 {[%emt 0:00:20]} 27. f4 {[%emt 0:00:58]} exf3 {[%emt 0:01:07]} 28. Nxf3 {[%emt 0:00:45]} Bb8 {[%emt 0:01:04]} 29. Ne5 {[%emt 0:02:39]} Qxh4 {[%emt 0:01:18]} 30. Qf2 {[%emt 0:01:07]} Qe7 {[%emt 0:00:38]} 31. Nc6 {[%emt 0:01:39]} Qd7 {[%emt 0:00:38]} 32. Nxb8 {[%emt 0:00:31]} Rfxb8 {[%emt 0:00:03]} 33. Rc5 {[%emt 0:00:40]} Rg6 {[%emt 0:00:54]} 34. Kh1 {[%emt 0:00:28]} h4 {[%emt 0:00:44]} 35. Bxd5 {[%emt 0:01:38]} h3 {[%emt 0:00:21]} 36. Rg1 {[%emt 0:00:28]} Rbb6 {[%emt 0:00:10]} 37. Rg3 {[%emt 0:00:30]} Rbf6 {[%emt 0:00:25]} 38. Qe1 {[%emt 0:00:36]} Bf5 {[%emt 0:00:52]} 39. e4 {[%emt 0:00:24]} Qxd5 {[%emt 0:00:33]} 40. exd5 {[%emt 0:00:26]} Be4+ {[%emt 0:00:16]} 41. Kg1 {[%emt 0:30:29]} 1-0

[Event "CZE-ch Women 2019"]
[Site "Prague"]
[Date "2019.06.15"]
[Round "1.5"]
[White "Rodshtein, Tereza"]
[Black "Pychova, Nela"]
[Result "0-1"]
[ECO "C42"]
[WhiteElo "2213"]
[BlackElo "2174"]
[Annotator "NA"]
[PlyCount "84"]
[EventDate "2019.06.15"]
[EventType "tourn"]
[EventCountry "CZE"]
[SourceTitle "playchess.com"]
[Source "ChessBase"]
[SourceQuality "1"]
[TimeControl "40/5400+30:1800+30"]

1. e4 {[%emt 0:00:00]} e5 {[%emt 0:00:55]} 2. Nf3 {[%emt 0:00:43]} Nf6 {[%emt 0:00:07]} 3. Nxe5 {[%emt 0:00:23]} d6 {[%emt 0:00:08]} 4. Nf3 {[%emt 0:00:03]} Nxe4 {[%emt 0:00:11]} 5. Nc3 {[%emt 0:00:55]} Nxc3 {[%emt 0:00:29]} 6. dxc3 {[%emt 0:00:06]} Be7 {[%emt 0:01:18]} 7. Be3 {[%emt 0:00:37]} Nc6 {[%emt 0:02:49]} 8. Qd2 {[%emt 0:00:50]} Be6 {[%emt 0:00:52]} 9. O-O-O {[%emt 0:00:42]} Qd7 {[%emt 0:01:18]} 10. Kb1 {[%emt 0:01:31]} a6 {[%emt 0:04:47]} 11. h3 {[%emt 0:00:23]} O-O-O {[%emt 0:04:18]} 12. g4 {[%emt 0:00:34]} Ne5 {[%emt 0:21:47]} 13. Be2 {[%emt 0:09:52]} Nc4 {[%emt 0:10:06]} 14. Bxc4 {[%emt 0:11:57]} Bxc4 {[%emt 0:00:06]} 15. Qd4 {[%emt 0:02:30]} Qc6 {[%emt 0:02:29]} 16. Nd2 {[%emt 0:06:45]} Bd5 {[%emt 0:07:44]} 17. Rhe1 {[%emt 0:04:24]} Bf6 {[%emt 0:01:05]} 18. Qd3 {[%emt 0:07:43]} h6 {[%emt 0:04:12]} 19. Bd4 {[%emt 0:04:05]} Bxd4 {[%emt 0:11:35]} 20. cxd4 {[%emt 0:05:40]} b5 {[%emt 0:02:07]} 21. b3 {[%emt 0:08:03]} Qb7 {[%emt 0:05:52]} 22. Ka1 {[%emt 0:02:45]} b4 {[%emt 0:01:17]} 23. Re3 {[%emt 0:05:17]} Qb5 {[%emt 0:03:54]} 24. Nc4 {[%emt 0:00:18]} Rhe8 {[%emt 0:01:52]} 25. Rde1 {[%emt 0:01:47]} Re6 {[%emt 0:02:09]} 26. Rxe6 {[%emt 0:04:29]} fxe6 {[%emt 0:01:50]} 27. c3 {[%emt 0:03:34]} Rf8 {[%emt 0:01:54]} 28. cxb4 {[%emt 0:04:18]} Qxb4 {[%emt 0:02:51]} 29. Re2 {[%emt 0:04:45]} Rf3 {[%emt 0:01:27]} 30. Ne3 {[%emt 0:02:21]} Bb7 {[%emt 0:02:30]} 31. Kb2 {[%emt 0:05:00]} Rxh3 {[%emt 0:00:48]} 32. a3 {[%emt 0:01:49]} Qb5 {[%emt 0:00:26]} 33. Qc2 {[%emt 0:01:22]} Be4 {[%emt 0:00:40]} 34. Qxe4 {[%emt 0:00:54]} Qxe2+ {[%emt 0:00:05]} 35. Kc3 {[%emt 0:00:01]} Qe1+ {[%emt 0:00:52]} 36. Kb2 {[%emt 0:00:41]} Qxf2+ {[%emt 0:00:09]} 37. Nc2 {[%emt 0:00:01]} Rh2 {[%emt 0:00:32]} 38. Qxe6+ {[%emt 0:00:24]} Kb7 {[%emt 0:00:24]} 39. Qe4+ {[%emt 0:01:07]} Kb6 {[%emt 0:00:41]} 40. Kc3 {[%emt 0:00:12]} Qxc2+ {[%emt 0:00:16]} 41. Qxc2 {[%emt 0:30:04]} Rxc2+ {[%emt 0:30:06]} 42. Kxc2 {[%emt 0:00:02]} Kc6 {[%emt 0:00:00]} 0-1

[Event "CZE-ch Women 2019"]
[Site "Prague"]
[Date "2019.06.16"]
[Round "2.2"]
[White "Miturova, Magdalena"]
[Black "Rodshtein, Tereza"]
[Result "1-0"]
[ECO "A38"]
[WhiteElo "2220"]
[BlackElo "2213"]
[Annotator "NA"]
[PlyCount "181"]
[EventDate "2019.06.15"]
[EventType "tourn"]
[EventCountry "CZE"]
[SourceTitle "playchess.com"]
[Source "ChessBase"]
[SourceQuality "1"]
[TimeControl "40/5400+30:1800+30"]

1. Nf3 {[%emt 0:00:00]} c5 {[%emt 0:00:00]} 2. c4 {[%emt 0:00:00]} Nc6 {[%emt 0:04:14]} 3. Nc3 {[%emt 0:00:06]} g6 {[%emt 0:04:15]} 4. g3 {[%emt 0:00:29]} Bg7 {[%emt 0:01:17]} 5. Bg2 {[%emt 0:00:16]} Nf6 {[%emt 0:00:54]} 6. d4 {[%emt 0:00:17]} cxd4 {[%emt 0:00:59]} 7. Nxd4 {[%emt 0:00:08]} O-O {[%emt 0:02:49]} 8. O-O {[%emt 0:00:53]} a6 {[%emt 0:03:47]} 9. e3 {[%emt 0:05:32]} Qc7 {[%emt 0:05:32]} 10. b3 {[%emt 0:06:00]} Rb8 {[%emt 0:03:09]} 11. Bb2 {[%emt 0:01:14]} b5 {[%emt 0:03:52]} 12. cxb5 {[%emt 0:07:46]} Nxd4 {[%emt 0:00:56]} 13. Qxd4 {[%emt 0:02:02]} axb5 {[%emt 0:10:01]} 14. Nd5 {[%emt 0:22:53]} Qd6 {[%emt 0:02:07]} 15. Nxf6+ {[%emt 0:04:22]} Qxf6 {[%emt 0:00:11]} 16. Qxf6 {[%emt 0:09:28]} Bxf6 {[%emt 0:00:15]} 17. Bxf6 {[%emt 0:00:07]} exf6 {[%emt 0:00:05]} 18. Rfd1 {[%emt 0:02:52]} Rd8 {[%emt 0:26:07]} 19. Rd6 {[%emt 0:07:40]} f5 {[%emt 0:07:46]} 20. Rad1 {[%emt 0:07:47]} Kf8 {[%emt 0:01:10]} 21. R6d4 {[%emt 0:03:40]} Ke7 {[%emt 0:02:40]} 22. e4 {[%emt 0:02:50]} fxe4 {[%emt 0:00:35]} 23. Rxe4+ {[%emt 0:00:02]} Kf8 {[%emt 0:00:29]} 24. Rb4 {[%emt 0:02:06]} d6 {[%emt 0:06:40]} 25. a4 {[%emt 0:03:50]} Be6 {[%emt 0:00:06]} 26. a5 {[%emt 0:05:03]} d5 {[%emt 0:06:52]} 27. Rbd4 {[%emt 0:02:20]} Rd6 {[%emt 0:03:18]} 28. Rc1 {[%emt 0:00:58]} b4 {[%emt 0:00:43]} 29. Rc5 {[%emt 0:01:24]} Ke7 {[%emt 0:00:52]} 30. Bf1 {[%emt 0:00:02]} Rd7 {[%emt 0:00:59]} 31. a6 {[%emt 0:02:17]} Kd6 {[%emt 0:01:12]} 32. Ra5 {[%emt 0:00:20]} Ra7 {[%emt 0:00:05]} 33. f4 {[%emt 0:00:52]} Kc6 {[%emt 0:00:41]} 34. Kf2 {[%emt 0:00:43]} h5 {[%emt 0:01:17]} 35. Ra4 {[%emt 0:00:10]} Kc5 {[%emt 0:00:13]} 36. Ke3 {[%emt 0:00:25]} Re7 {[%emt 0:01:12]} 37. Ra5+ {[%emt 0:00:19]} Kc6 {[%emt 0:00:14]} 38. Kd2 {[%emt 0:00:31]} Ra7 {[%emt 0:00:22]} 39. Ra4 {[%emt 0:00:39]} Kc5 {[%emt 0:00:07]} 40. Ke3 {[%emt 0:00:05]} Re7 {[%emt 0:00:12]} 41. Ra5+ {[%emt 0:30:12]} Kc6 {[%emt 0:30:55]} 42. Kf2 {[%emt 0:00:00]} Ra7 {[%emt 0:00:00]} 43. Rd2 {[%emt 0:00:00]} Rc8 {[%emt 0:00:00]} 44. Rc2+ {[%emt 0:00:00]} Kd6 {[%emt 0:00:00]} 45. Rxc8 {[%emt 0:00:00]} Bxc8 {[%emt 0:00:00]} 46. Ke3 {[%emt 0:00:00]} Bd7 {[%emt 0:00:00]} 47. Kd4 {[%emt 0:00:00]} Bc6 {[%emt 0:00:00]} 48. Bg2 {[%emt 0:00:00]} Kc7 {[%emt 0:00:00]} 49. Kc5 {[%emt 0:01:43]} Ra8 {[%emt 0:00:00]} 50. Bf1 {[%emt 0:02:49]} d4 {[%emt 0:00:00]} 51. Kxb4 {[%emt 0:00:45]} Kb6 {[%emt 0:00:00]} 52. Re5 {[%emt 0:00:41]} Rd8 {[%emt 0:00:00]} 53. Bd3 {[%emt 0:00:44]} Rd7 {[%emt 0:00:00]} 54. Re1 {[%emt 0:00:37]} Bd5 {[%emt 0:00:00]} 55. Ra1 {[%emt 0:00:42]} Rc7 {[%emt 0:00:00]} 56. Bc4 {[%emt 0:00:43]} Ba8 {[%emt 0:00:00]} 57. Rd1 {[%emt 0:00:25]} Rd7 {[%emt 0:00:00]} 58. Bb5 {[%emt 0:00:26]} Rd6 {[%emt 0:00:00]} 59. Bc4 {[%emt 0:00:34]} f6 {[%emt 0:00:00]} 60. Ka3 {[%emt 0:00:10]} Be4 {[%emt 0:00:05]} 61. b4 {[%emt 0:00:38]} f5 {[%emt 0:01:55]} 62. Kb3 {[%emt 0:00:21]} Rd7 {[%emt 0:01:24]} 63. Rd2 {[%emt 0:00:04]} Bc6 {[%emt 0:00:37]} 64. Ra2 {[%emt 0:00:43]} Ba8 {[%emt 0:00:54]} 65. Re2 {[%emt 0:01:08]} Be4 {[%emt 0:00:24]} 66. Ra2 {[%emt 0:00:16]} Ba8 {[%emt 0:00:06]} 67. Kc2 {[%emt 0:00:36]} Rc7 {[%emt 0:01:38]} 68. Kd3 {[%emt 0:00:07]} Rd7 {[%emt 0:00:02]} 69. Kd2 {[%emt 0:01:04]} Rc7 {[%emt 0:00:31]} 70. Bd3 {[%emt 0:00:22]} Rd7 {[%emt 0:02:07]} 71. Ra5 {[%emt 0:00:11]} Be4 {[%emt 0:00:23]} 72. Re5 {[%emt 0:00:48]} Bd5 {[%emt 0:00:45]} 73. Re8 {[%emt 0:00:25]} Ka7 {[%emt 0:02:16]} 74. Rf8 {[%emt 0:00:35]} Rd6 {[%emt 0:00:26]} 75. Rh8 {[%emt 0:00:37]} Rd7 {[%emt 0:00:48]} 76. Bb5 {[%emt 0:00:05]} Rd6 {[%emt 0:00:25]} 77. Rh7+ {[%emt 0:00:08]} Kb6 {[%emt 0:00:07]} 78. Bd3 {[%emt 0:00:06]} Be4 {[%emt 0:00:27]} 79. b5 {[%emt 0:01:28]} Bf3 {[%emt 0:03:02]} 80. Rg7 {[%emt 0:00:22]} Bg2 {[%emt 0:00:12]} 81. Rg8 {[%emt 0:00:13]} Bf3 {[%emt 0:00:16]} 82. Bc4 {[%emt 0:00:29]} Kc5 {[%emt 0:00:56]} 83. Rc8+ {[%emt 0:00:44]} Kb6 {[%emt 0:00:07]} 84. Rb8+ {[%emt 0:00:13]} Ka7 {[%emt 0:00:50]} 85. Re8 {[%emt 0:00:53]} Kb6 {[%emt 0:00:45]} 86. Re5 {[%emt 0:00:33]} Be4 {[%emt 0:00:16]} 87. Bf7 {[%emt 0:00:11]} Rf6 {[%emt 0:00:51]} 88. Be8 {[%emt 0:00:15]} Rd6 {[%emt 0:00:05]} 89. Re7 {[%emt 0:00:27]} Ba8 {[%emt 0:00:43]} 90. Rg7 {[%emt 0:01:05]} Re6 {[%emt 0:01:18]} 91. Rxg6 {[%emt 0:00:41]} 1-0

[Event "CZE-ch Women 2019"]
[Site "Prague"]
[Date "2019.06.16"]
[Round "2.3"]
[White "Petrova, Kristyna"]
[Black "Sikorova, Olga"]
[Result "1-0"]
[ECO "C00"]
[WhiteElo "2259"]
[BlackElo "2248"]
[Annotator "NA"]
[PlyCount "111"]
[EventDate "2019.06.15"]
[EventType "tourn"]
[EventCountry "CZE"]
[SourceTitle "playchess.com"]
[Source "ChessBase"]
[SourceQuality "1"]
[TimeControl "40/5400+30:1800+30"]

1. e4 {[%emt 0:00:00]} e6 {[%emt 0:00:00]} 2. d4 {[%emt 0:00:00]} d5 {[%emt 0:00:00]} 3. Bd3 {[%emt 0:00:00]} dxe4 {[%emt 0:00:15]} 4. Bxe4 {[%emt 0:00:00]} Nf6 {[%emt 0:00:08]} 5. Bf3 {[%emt 0:00:00]} Nbd7 {[%emt 0:09:52]} 6. Ne2 {[%emt 0:01:51]} Be7 {[%emt 0:04:50]} 7. Nbc3 {[%emt 0:05:11]} e5 {[%emt 0:04:53]} 8. O-O {[%emt 0:06:28]} O-O {[%emt 0:01:44]} 9. Re1 {[%emt 0:05:39]} c6 {[%emt 0:03:22]} 10. Be3 {[%emt 0:03:30]} Qc7 {[%emt 0:02:39]} 11. Ng3 {[%emt 0:07:01]} Re8 {[%emt 0:11:41]} 12. d5 {[%emt 0:13:26]} cxd5 {[%emt 0:01:37]} 13. Nxd5 {[%emt 0:00:27]} Nxd5 {[%emt 0:00:45]} 14. Bxd5 {[%emt 0:00:04]} Nf6 {[%emt 0:04:16]} 15. Bb3 {[%emt 0:03:36]} Bd7 {[%emt 0:18:00]} 16. h3 {[%emt 0:11:32]} Rad8 {[%emt 0:03:39]} 17. Qe2 {[%emt 0:01:21]} b6 {[%emt 0:00:47]} 18. Rad1 {[%emt 0:05:40]} Bc8 {[%emt 0:05:10]} 19. Rxd8 {[%emt 0:06:28]} Bxd8 {[%emt 0:06:28]} 20. Bd2 {[%emt 0:07:34]} Bb7 {[%emt 0:03:54]} 21. Qc4 {[%emt 0:01:12]} Qxc4 {[%emt 0:02:05]} 22. Bxc4 {[%emt 0:00:02]} Bc7 {[%emt 0:00:54]} 23. Bg5 {[%emt 0:01:36]} e4 {[%emt 0:05:52]} 24. Nf5 {[%emt 0:03:57]} Bc8 {[%emt 0:03:05]} 25. Nh6+ {[%emt 0:01:42]} gxh6 {[%emt 0:01:12]} 26. Bxf6 {[%emt 0:00:04]} Bb7 {[%emt 0:00:46]} 27. Rd1 {[%emt 0:04:35]} Bc6 {[%emt 0:00:31]} 28. Bd5 {[%emt 0:04:20]} Bxd5 {[%emt 0:00:53]} 29. Rxd5 {[%emt 0:00:02]} Re6 {[%emt 0:00:27]} 30. Bc3 {[%emt 0:02:22]} Rd6 {[%emt 0:01:01]} 31. Rxd6 {[%emt 0:00:42]} Bxd6 {[%emt 0:00:02]} 32. Bf6 {[%emt 0:00:05]} h5 {[%emt 0:01:11]} 33. Kf1 {[%emt 0:01:27]} h6 {[%emt 0:00:20]} 34. Ke2 {[%emt 0:01:22]} Kh7 {[%emt 0:00:02]} 35. c4 {[%emt 0:02:53]} Kg6 {[%emt 0:00:15]} 36. Bd4 {[%emt 0:00:05]} f5 {[%emt 0:01:49]} 37. f3 {[%emt 0:00:24]} Be7 {[%emt 0:01:49]} 38. a3 {[%emt 0:01:13]} Kg5 {[%emt 0:01:47]} 39. Ke3 {[%emt 0:00:37]} exf3 {[%emt 0:00:46]} 40. Kxf3 {[%emt 0:00:14]} Bd6 {[%emt 0:00:29]} 41. b4 {[%emt 0:06:05]} Bc7 {[%emt 0:04:19]} 42. h4+ {[%emt 0:10:49]} Kg6 {[%emt 0:00:23]} 43. Be3 {[%emt 0:00:04]} Kf7 {[%emt 0:03:44]} 44. Bxh6 {[%emt 0:01:57]} a5 {[%emt 0:10:50]} 45. bxa5 {[%emt 0:03:54]} bxa5 {[%emt 0:00:02]} 46. a4 {[%emt 0:00:04]} Ke6 {[%emt 0:00:24]} 47. Bf4 {[%emt 0:01:52]} Bd8 {[%emt 0:00:34]} 48. g3 {[%emt 0:00:41]} Bb6 {[%emt 0:05:28]} 49. Bb8 {[%emt 0:01:23]} Bc5 {[%emt 0:02:13]} 50. Kf4 {[%emt 0:01:25]} Kf6 {[%emt 0:00:37]} 51. Be5+ {[%emt 0:00:25]} Ke6 {[%emt 0:02:46]} 52. Bc7 {[%emt 0:00:13]} Bb4 {[%emt 0:00:00]} 53. Kg5 {[%emt 0:00:31]} Kd7 {[%emt 0:00:54]} 54. Be5 {[%emt 0:01:10]} Kc6 {[%emt 0:00:12]} 55. Bd4 {[%emt 0:00:47]} Be1 {[%emt 0:01:11]} 56. Kxf5 {[%emt 0:00:22] Kd5} 1-0

[Event "CZE-ch Women 2019"]
[Site "Prague"]
[Date "2019.06.16"]
[Round "2.4"]
[White "Kanakova, Natalie"]
[Black "Olsarova, Karolina"]
[Result "1/2-1/2"]
[ECO "C28"]
[WhiteElo "2201"]
[BlackElo "2260"]
[Annotator "NA"]
[PlyCount "82"]
[EventDate "2019.06.15"]
[EventType "tourn"]
[EventCountry "CZE"]
[SourceTitle "playchess.com"]
[Source "ChessBase"]
[SourceQuality "1"]
[TimeControl "40/5400+30:1800+30"]

1. e4 {[%emt 0:00:00]} e5 {[%emt 0:00:00]} 2. Nc3 {[%emt 0:00:00]} Nf6 {[%emt 0:00:00]} 3. Bc4 {[%emt 0:00:00]} Nc6 {[%emt 0:01:22]} 4. d3 {[%emt 0:00:30]} Na5 {[%emt 0:00:47]} 5. Bb3 {[%emt 0:00:15]} Bc5 {[%emt 0:03:34]} 6. f4 {[%emt 0:01:10]} Nxb3 {[%emt 0:09:49]} 7. axb3 {[%emt 0:00:07]} exf4 {[%emt 0:01:29]} 8. e5 {[%emt 0:01:38]} Ng8 {[%emt 0:08:01]} 9. Bxf4 {[%emt 0:00:46]} d5 {[%emt 0:02:44]} 10. d4 {[%emt 0:09:45]} Bb4 {[%emt 0:05:34]} 11. Nf3 {[%emt 0:02:49]} Ne7 {[%emt 0:04:54]} 12. O-O {[%emt 0:04:16]} h6 {[%emt 0:10:14]} 13. Ra4 {[%emt 0:10:43]} a5 {[%emt 0:05:24]} 14. Nb5 {[%emt 0:06:57]} Bd7 {[%emt 0:20:06]} 15. Qe2 {[%emt 0:04:51]} Ng6 {[%emt 0:01:20]} 16. e6 {[%emt 0:07:44]} O-O {[%emt 0:00:47]} 17. Bg3 {[%emt 0:07:16]} Bxb5 {[%emt 0:04:16]} 18. Qxb5 {[%emt 0:00:33]} Ra7 {[%emt 0:05:50]} 19. c3 {[%emt 0:05:36]} Be7 {[%emt 0:00:40]} 20. Qd3 {[%emt 0:02:09]} Ra6 {[%emt 0:00:41]} 21. Re1 {[%emt 0:02:10]} Qc8 {[%emt 0:07:46]} 22. exf7+ {[%emt 0:09:46]} Kxf7 {[%emt 0:00:07]} 23. Ne5+ {[%emt 0:01:59]} Nxe5 {[%emt 0:00:10]} 24. Bxe5 {[%emt 0:01:16]} Bf6 {[%emt 0:03:19]} 25. Bxf6 {[%emt 0:04:22]} Rxf6 {[%emt 0:00:02]} 26. Rxa5 {[%emt 0:00:06]} c6 {[%emt 0:00:45]} 27. c4 {[%emt 0:03:28]} Qc7 {[%emt 0:02:19]} 28. Raa1 {[%emt 0:03:09]} Kg8 {[%emt 0:00:23]} 29. Re5 {[%emt 0:05:09]} Qf7 {[%emt 0:00:29]} 30. h3 {[%emt 0:01:39]} Rf2 {[%emt 0:00:39]} 31. Re2 {[%emt 0:01:55]} Rf1+ {[%emt 0:01:14]} 32. Rxf1 {[%emt 0:00:04]} Qxf1+ {[%emt 0:00:02]} 33. Kh2 {[%emt 0:00:05]} Qf4+ {[%emt 0:00:33]} 34. g3 {[%emt 0:02:16]} Qf3 {[%emt 0:00:07]} 35. Qxf3 {[%emt 0:01:55]} Rxf3 {[%emt 0:00:02]} 36. cxd5 {[%emt 0:00:20]} cxd5 {[%emt 0:01:04]} 37. Re5 {[%emt 0:01:01]} Rxb3 {[%emt 0:00:10]} 38. Rxd5 {[%emt 0:00:04]} Rxb2+ {[%emt 0:00:06]} 39. Kg1 {[%emt 0:00:04]} Kf7 {[%emt 0:00:34]} 40. Rd6 {[%emt 0:00:48]} Ke7 {[%emt 0:01:15]} 41. Rg6 {[%emt 0:30:22]} Kf7 {[%emt 0:30:14]} 1/2-1/2